[Event "*** SCC Grand Prix: Titled Tuesday Blitz"]
[Site "Chess.com"]
[Date "2020.07.14"]
[Round "7"]
[White "Dr_crypt"]
[Black "AlanZhang"]
[Result "1-0"]
[WhiteElo "2390"]
[BlackElo "2217"]
[TimeControl "180+1"]
[EndTime "11:20:13 PDT"]
[Termination "Dr_crypt won by resignation"]

1. d4 {[%clk 0:03:00.2]} 1... Nf6 {[%clk 0:02:59.9]} 2. Nf3 {[%clk 0:02:59.3]}
2... d5 {[%clk 0:02:59]} 3. c4 {[%clk 0:02:59.1]} 3... e6 {[%clk 0:02:59.1]} 4.
Nc3 {[%clk 0:02:59]} 4... Be7 {[%clk 0:02:58.8]} 5. Bf4 {[%clk 0:02:58.1]} 5...
O-O {[%clk 0:02:58.7]} 6. e3 {[%clk 0:02:58.7]} 6... c5 {[%clk 0:02:58.1]} 7.
dxc5 {[%clk 0:02:56.4]} 7... Bxc5 {[%clk 0:02:59]} 8. cxd5 {[%clk 0:02:56.4]}
8... exd5 {[%clk 0:02:58.4]} 9. Be2 {[%clk 0:02:54.1]} 9... Nc6 {[%clk
0:02:58.2]} 10. O-O {[%clk 0:02:53.7]} 10... h6 {[%clk 0:02:50.7]} 11. h3 {[%clk
0:02:51.6]} 11... Be6 {[%clk 0:02:43.8]} 12. Rc1 {[%clk 0:02:50.8]} 12... Bd6
{[%clk 0:02:43.1]} 13. Bxd6 {[%clk 0:02:48.6]} 13... Qxd6 {[%clk 0:02:44]} 14.
Nb5 {[%clk 0:02:49.2]} 14... Qe7 {[%clk 0:02:30.8]} 15. Nbd4 {[%clk 0:02:45.4]}
15... Rac8 {[%clk 0:02:30.2]} 16. Qa4 {[%clk 0:02:43.6]} 16... Ne4 {[%clk
0:02:15.8]} 17. Rfd1 {[%clk 0:02:27.5]} 17... Nxd4 {[%clk 0:01:47.9]} 18. Qxd4
{[%clk 0:02:25.1]} 18... a6 {[%clk 0:01:43.9]} 19. a3 {[%clk 0:02:20.4]} 19...
Rfd8 {[%clk 0:01:28.9]} 20. Bd3 {[%clk 0:02:19.6]} 20... Nc5 {[%clk 0:01:25.6]}
21. Qb4 {[%clk 0:02:12.1]} 21... Qd6 {[%clk 0:01:21.4]} 22. Bb1 {[%clk
0:02:10.2]} 22... b6 {[%clk 0:01:12.8]} 23. Nd4 {[%clk 0:02:05.7]} 23... Nb7
{[%clk 0:01:02.5]} 24. Qd2 {[%clk 0:01:52.8]} 24... g6 {[%clk 0:00:54.8]} 25.
Rxc8 {[%clk 0:01:41.3]} 25... Bxc8 {[%clk 0:00:46.9]} 26. e4 {[%clk 0:01:42.2]}
26... dxe4 {[%clk 0:00:45.7]} 27. Qxh6 {[%clk 0:01:41.5]} 27... Nc5 {[%clk
0:00:40.1]} 28. Bc2 {[%clk 0:01:23.7]} 28... Qe5 {[%clk 0:00:28.4]} 29. b4
{[%clk 0:01:21.8]} 29... Ne6 {[%clk 0:00:14.6]} 30. Nc6 {[%clk 0:01:15.8]} 30...
Rxd1+ {[%clk 0:00:13.7]} 31. Bxd1 {[%clk 0:01:16.7]} 31... Qd6 {[%clk 0:00:14]}
32. Qc1 {[%clk 0:01:12.4]} 32... Bb7 {[%clk 0:00:13.8]} 33. Ba4 {[%clk
0:01:09.8]} 33... b5 {[%clk 0:00:13.8]} 34. Na5 {[%clk 0:01:09.6]} 34... Bd5
{[%clk 0:00:08.1]} 35. Bc2 {[%clk 0:00:58.5]} 35... Nd4 {[%clk 0:00:07.2]} 36.
Qd2 {[%clk 0:00:58.3]} 36... Ba8 {[%clk 0:00:05.8]} 37. Kf1 {[%clk 0:00:51.9]}
37... Qe5 {[%clk 0:00:04.1]} 38. Qc3 {[%clk 0:00:49.8]} 38... Bd5 {[%clk
0:00:03.7]} 39. Bd1 {[%clk 0:00:47.6]} 39... Kh7 {[%clk 0:00:02.5]} 40. Qe3
{[%clk 0:00:41.3]} 40... Nc6 {[%clk 0:00:02.9]} 41. Nxc6 {[%clk 0:00:40.8]}
41... Bxc6 {[%clk 0:00:03.8]} 42. Qc5 {[%clk 0:00:41.2]} 42... Qxc5 {[%clk
0:00:03.5]} 43. bxc5 {[%clk 0:00:41.5]} 43... a5 {[%clk 0:00:04]} 44. Ke2 {[%clk
0:00:41.4]} 44... Kg7 {[%clk 0:00:03.8]} 45. Ke3 {[%clk 0:00:41.6]} 45... Kf6
{[%clk 0:00:04.1]} 46. Kd4 {[%clk 0:00:42.1]} 46... Ke6 {[%clk 0:00:04.6]} 47.
Bb3+ {[%clk 0:00:41.6]} 47... Kd7 {[%clk 0:00:04.3]} 48. Bxf7 {[%clk 0:00:41.6]}
48... Ke7 {[%clk 0:00:04]} 49. Bxg6 {[%clk 0:00:41.7]} 49... b4 {[%clk
0:00:04.1]} 50. axb4 {[%clk 0:00:41.8]} 50... axb4 {[%clk 0:00:05]} 51. Bxe4
{[%clk 0:00:42.2]} 1-0

[Event "*** SCC Grand Prix: Titled Tuesday Blitz"]
[Site "Chess.com"]
[Date "2020.07.14"]
[Round "7"]
[White "r31415"]
[Black "JuliaEfremova"]
[Result "0-1"]
[WhiteElo "2423"]
[BlackElo "2319"]
[TimeControl "180+1"]
[EndTime "11:20:16 PDT"]
[Termination "JuliaEfremova won by resignation"]

1. c4 {[%clk 0:03:00.9]} 1... Nf6 {[%clk 0:02:57.9]} 2. Nc3 {[%clk 0:03:00.3]}
2... g6 {[%clk 0:02:58.2]} 3. d4 {[%clk 0:03:00.3]} 3... Bg7 {[%clk 0:02:58.5]}
4. e4 {[%clk 0:03:00.1]} 4... d6 {[%clk 0:02:59.1]} 5. f3 {[%clk 0:02:59.1]}
5... O-O {[%clk 0:02:59.6]} 6. Bg5 {[%clk 0:02:59.3]} 6... Nbd7 {[%clk
0:02:58.3]} 7. Qd2 {[%clk 0:02:59]} 7... c5 {[%clk 0:02:58.3]} 8. d5 {[%clk
0:02:59]} 8... Re8 {[%clk 0:02:53.4]} 9. Nge2 {[%clk 0:02:54.3]} 9... a6 {[%clk
0:02:51.9]} 10. h4 {[%clk 0:02:47.8]} 10... b5 {[%clk 0:02:51.6]} 11. cxb5
{[%clk 0:02:47.1]} 11... axb5 {[%clk 0:02:51.1]} 12. Nxb5 {[%clk 0:02:42.3]}
12... Ba6 {[%clk 0:02:49.6]} 13. Nbc3 {[%clk 0:02:40.1]} 13... Qb6 {[%clk
0:02:38.4]} 14. Ng3 {[%clk 0:02:30.7]} 14... Bxf1 {[%clk 0:02:36.9]} 15. Kxf1
{[%clk 0:02:29.9]} 15... Reb8 {[%clk 0:02:09.2]} 16. Rb1 {[%clk 0:02:29.4]}
16... Ne5 {[%clk 0:02:04.2]} 17. b3 {[%clk 0:02:20.1]} 17... Qa6+ {[%clk
0:01:58.5]} 18. Kg1 {[%clk 0:02:04.8]} 18... c4 {[%clk 0:01:52.9]} 19. h5 {[%clk
0:01:51]} 19... cxb3 {[%clk 0:01:46.4]} 20. axb3 {[%clk 0:01:49.4]} 20... Qd3
{[%clk 0:01:40.1]} 21. Kf2 {[%clk 0:01:09.8]} 21... Qxd2+ {[%clk 0:01:28]} 22.
Bxd2 {[%clk 0:01:09.1]} 22... Ra3 {[%clk 0:01:27.6]} 23. h6 {[%clk 0:01:00.9]}
23... Bh8 {[%clk 0:01:24.7]} 24. b4 {[%clk 0:00:36.4]} 24... Nfd7 {[%clk
0:00:58.7]} 25. Ke2 {[%clk 0:00:24.7]} 25... Nc4 {[%clk 0:00:56.5]} 26. Rhc1
{[%clk 0:00:23.4]} 26... Ndb6 {[%clk 0:00:53.5]} 27. Be1 {[%clk 0:00:20.9]}
27... Be5 {[%clk 0:00:49.7]} 28. Ra1 {[%clk 0:00:12]} 28... Bf4 {[%clk
0:00:48.2]} 29. Rxa3 {[%clk 0:00:10]} 29... Nxa3 {[%clk 0:00:48.1]} 30. Rd1
{[%clk 0:00:04.1]} 30... Bxh6 {[%clk 0:00:46.2]} 31. Bd2 {[%clk 0:00:02.3]}
31... Bg7 {[%clk 0:00:45.6]} 32. Nb1 {[%clk 0:00:01.5]} 32... Nac4 {[%clk
0:00:43.8]} 33. Be3 {[%clk 0:00:01.6]} 33... Nxe3 {[%clk 0:00:41.8]} 34. Kxe3
{[%clk 0:00:02.5]} 34... Nc4+ {[%clk 0:00:41.8]} 35. Kd3 {[%clk 0:00:02.9]}
35... Rxb4 {[%clk 0:00:42.1]} 36. Nd2 {[%clk 0:00:03.1]} 36... Nb2+ {[%clk
0:00:41.7]} 37. Kc2 {[%clk 0:00:02.3]} 37... Nxd1 {[%clk 0:00:40.5]} 38. Kxd1
{[%clk 0:00:03.2]} 38... h5 {[%clk 0:00:39.9]} 39. Kc2 {[%clk 0:00:03.6]} 39...
Rb2+ {[%clk 0:00:35.1]} 40. Kd1 {[%clk 0:00:03.6]} 40... Bh6 {[%clk 0:00:32.2]}
41. Ngf1 {[%clk 0:00:02.6]} 41... f5 {[%clk 0:00:30.4]} 42. Kc1 {[%clk
0:00:02.8]} 42... Ra2 {[%clk 0:00:27.9]} 43. exf5 {[%clk 0:00:03.1]} 43... gxf5
{[%clk 0:00:27]} 44. g3 {[%clk 0:00:03]} 44... f4 {[%clk 0:00:24.2]} 45. gxf4
{[%clk 0:00:01.5]} 45... Bxf4 {[%clk 0:00:23.6]} 46. Kd1 {[%clk 0:00:02.4]}
46... h4 {[%clk 0:00:21]} 47. Ke1 {[%clk 0:00:02.6]} 47... h3 {[%clk 0:00:20.2]}
48. Ne4 {[%clk 0:00:02.8]} 0-1

[Event "*** SCC Grand Prix: Titled Tuesday Blitz"]
[Site "Chess.com"]
[Date "2020.07.14"]
[Round "7"]
[White "Chernobay_Artem"]
[Black "crossingthestreet"]
[Result "1-0"]
[WhiteElo "2633"]
[BlackElo "2425"]
[TimeControl "180+1"]
[EndTime "11:20:18 PDT"]
[Termination "Chernobay_Artem won by checkmate"]

1. d4 {[%clk 0:03:00.9]} 1... Nf6 {[%clk 0:02:59.3]} 2. c4 {[%clk 0:03:00.8]}
2... e6 {[%clk 0:02:59.4]} 3. Nf3 {[%clk 0:03:00.4]} 3... d5 {[%clk 0:02:59]} 4.
g3 {[%clk 0:03:00.2]} 4... Be7 {[%clk 0:02:59.1]} 5. Bg2 {[%clk 0:03:00.1]} 5...
O-O {[%clk 0:02:59.5]} 6. O-O {[%clk 0:03:00.2]} 6... dxc4 {[%clk 0:02:59.6]} 7.
Qc2 {[%clk 0:03:00.2]} 7... a6 {[%clk 0:02:56.7]} 8. Qxc4 {[%clk 0:02:59.9]}
8... b5 {[%clk 0:02:56.8]} 9. Qc2 {[%clk 0:02:59]} 9... Bb7 {[%clk 0:02:57.1]}
10. Bf4 {[%clk 0:02:50.9]} 10... Nd5 {[%clk 0:02:54.2]} 11. Bd2 {[%clk
0:02:44.8]} 11... Nd7 {[%clk 0:02:41.3]} 12. Ba5 {[%clk 0:02:41.4]} 12... Qc8
{[%clk 0:02:11.9]} 13. e4 {[%clk 0:02:23.1]} 13... Nb4 {[%clk 0:02:11.3]} 14.
Qb3 {[%clk 0:02:15.8]} 14... c5 {[%clk 0:02:00.5]} 15. Bxb4 {[%clk 0:02:00.8]}
15... cxb4 {[%clk 0:02:00.5]} 16. Nbd2 {[%clk 0:02:01.4]} 16... Nf6 {[%clk
0:01:45.2]} 17. Rfe1 {[%clk 0:01:53.2]} 17... Rd8 {[%clk 0:01:39]} 18. Rad1
{[%clk 0:01:43.3]} 18... a5 {[%clk 0:01:31.9]} 19. Qe3 {[%clk 0:01:37.1]} 19...
Qd7 {[%clk 0:01:27.1]} 20. d5 {[%clk 0:01:23]} 20... exd5 {[%clk 0:01:14]} 21.
e5 {[%clk 0:01:22]} 21... Ng4 {[%clk 0:01:11.6]} 22. Qf4 {[%clk 0:01:20.4]}
22... Nh6 {[%clk 0:01:06]} 23. Nd4 {[%clk 0:01:12.4]} 23... Rac8 {[%clk
0:00:58]} 24. N2f3 {[%clk 0:00:39.7]} 24... Qg4 {[%clk 0:00:55.4]} 25. Qe3
{[%clk 0:00:36.5]} 25... Nf5 {[%clk 0:00:53.7]} 26. Nxf5 {[%clk 0:00:36.6]}
26... Qxf5 {[%clk 0:00:54.6]} 27. Nd4 {[%clk 0:00:37.5]} 27... Qd7 {[%clk
0:00:47.6]} 28. e6 {[%clk 0:00:33.2]} 28... fxe6 {[%clk 0:00:47.2]} 29. Bh3
{[%clk 0:00:33.7]} 29... Rc6 {[%clk 0:00:24.7]} 30. Nxc6 {[%clk 0:00:23.5]}
30... Qxc6 {[%clk 0:00:25.6]} 31. Bxe6+ {[%clk 0:00:23.4]} 31... Kh8 {[%clk
0:00:25.6]} 32. Rc1 {[%clk 0:00:11.8]} 32... Qd6 {[%clk 0:00:18.4]} 33. Bf5
{[%clk 0:00:09.8]} 33... Bf6 {[%clk 0:00:17.9]} 34. Qe8+ {[%clk 0:00:09.1]}
34... Qf8 {[%clk 0:00:15.9]} 35. Qxf8+ {[%clk 0:00:09.1]} 35... Rxf8 {[%clk
0:00:16.8]} 36. Rc7 {[%clk 0:00:09.4]} 36... Ba8 {[%clk 0:00:17]} 37. b3 {[%clk
0:00:08.7]} 37... a4 {[%clk 0:00:16.7]} 38. Bd3 {[%clk 0:00:08.3]} 38... Bc3
{[%clk 0:00:16.2]} 39. Ree7 {[%clk 0:00:07.8]} 39... Bd4 {[%clk 0:00:16.2]} 40.
Kg2 {[%clk 0:00:07.7]} 40... Rxf2+ {[%clk 0:00:15.4]} 41. Kh3 {[%clk 0:00:08]}
41... Rf8 {[%clk 0:00:15.9]} 42. Bxb5 {[%clk 0:00:07.2]} 42... a3 {[%clk
0:00:15.6]} 43. Bd3 {[%clk 0:00:06.6]} 43... Bc3 {[%clk 0:00:14.4]} 44. Red7
{[%clk 0:00:06.3]} 44... Bf6 {[%clk 0:00:14.3]} 45. Rf7 {[%clk 0:00:05.6]} 45...
d4 {[%clk 0:00:14.5]} 46. Rxf8# {[%clk 0:00:03.6]} 1-0

[Event "*** SCC Grand Prix: Titled Tuesday Blitz"]
[Site "Chess.com"]
[Date "2020.07.14"]
[Round "7"]
[White "ailime26"]
[Black "VladimirBugayev"]
[Result "1-0"]
[WhiteElo "1878"]
[BlackElo "2096"]
[TimeControl "180+1"]
[EndTime "11:20:19 PDT"]
[Termination "ailime26 won on time"]

1. e4 {[%clk 0:03:00.9]} 1... c6 {[%clk 0:03:00.1]} 2. d4 {[%clk 0:03:00.1]}
2... d5 {[%clk 0:03:00.3]} 3. exd5 {[%clk 0:03:00.2]} 3... cxd5 {[%clk
0:02:59.8]} 4. Bd3 {[%clk 0:02:59]} 4... Nc6 {[%clk 0:03:00.2]} 5. c3 {[%clk
0:02:53.9]} 5... Qc7 {[%clk 0:03:00.3]} 6. Be3 {[%clk 0:02:45.3]} 6... Nf6
{[%clk 0:02:52.4]} 7. Nd2 {[%clk 0:02:42.6]} 7... e5 {[%clk 0:02:41.1]} 8. dxe5
{[%clk 0:02:34.5]} 8... Nxe5 {[%clk 0:02:40.5]} 9. Bb5+ {[%clk 0:02:34]} 9...
Bd7 {[%clk 0:02:41]} 10. Bxd7+ {[%clk 0:02:33.1]} 10... Nfxd7 {[%clk 0:02:41.4]}
11. Qe2 {[%clk 0:02:29.7]} 11... Be7 {[%clk 0:02:22.1]} 12. Ngf3 {[%clk
0:02:24.2]} 12... O-O {[%clk 0:02:16]} 13. O-O {[%clk 0:02:19.1]} 13... Bf6
{[%clk 0:01:49]} 14. Bf4 {[%clk 0:02:14.6]} 14... Nxf3+ {[%clk 0:01:45]} 15.
Qxf3 {[%clk 0:02:13.4]} 15... Qc6 {[%clk 0:01:42.1]} 16. Nb3 {[%clk 0:01:56.2]}
16... Nb6 {[%clk 0:01:41.5]} 17. Rad1 {[%clk 0:01:51.6]} 17... Na4 {[%clk
0:01:35.2]} 18. Rd2 {[%clk 0:01:46.9]} 18... Rad8 {[%clk 0:01:25.4]} 19. Qg3
{[%clk 0:01:39.9]} 19... Nc5 {[%clk 0:01:13.4]} 20. Nxc5 {[%clk 0:01:14]} 20...
Qxc5 {[%clk 0:01:12.9]} 21. Be3 {[%clk 0:01:08.6]} 21... Qa5 {[%clk 0:00:46.5]}
22. a3 {[%clk 0:00:58]} 22... d4 {[%clk 0:00:40.2]} 23. Bxd4 {[%clk 0:00:53.4]}
23... Bxd4 {[%clk 0:00:27.9]} 24. Rxd4 {[%clk 0:00:52.5]} 24... Rxd4 {[%clk
0:00:27.9]} 25. cxd4 {[%clk 0:00:51.8]} 25... Rd8 {[%clk 0:00:27.8]} 26. Qc3
{[%clk 0:00:47.5]} 26... Qa4 {[%clk 0:00:22.3]} 27. b4 {[%clk 0:00:39.4]} 27...
h6 {[%clk 0:00:17.2]} 28. g3 {[%clk 0:00:29.1]} 28... Qd7 {[%clk 0:00:10.5]} 29.
Rd1 {[%clk 0:00:26.4]} 29... Qd5 {[%clk 0:00:10.6]} 30. Rd2 {[%clk 0:00:17.9]}
30... b6 {[%clk 0:00:09.6]} 31. Qe3 {[%clk 0:00:16.2]} 31... Rd6 {[%clk
0:00:09.2]} 32. Qe8+ {[%clk 0:00:13.2]} 32... Kh7 {[%clk 0:00:08.6]} 33. Qe3
{[%clk 0:00:13.1]} 33... Re6 {[%clk 0:00:07.4]} 34. Qd3+ {[%clk 0:00:12.4]}
34... g6 {[%clk 0:00:06.7]} 35. f3 {[%clk 0:00:11.6]} 35... Re1+ {[%clk
0:00:05.5]} 36. Kf2 {[%clk 0:00:11.8]} 36... Rh1 {[%clk 0:00:04.7]} 37. Kg2
{[%clk 0:00:11.6]} 37... Re1 {[%clk 0:00:04.3]} 38. Kf2 {[%clk 0:00:10.6]} 38...
Rh1 {[%clk 0:00:04.2]} 39. Kg2 {[%clk 0:00:09]} 39... Ra1 {[%clk 0:00:04.8]} 40.
Re2 {[%clk 0:00:06.5]} 40... Ra2 {[%clk 0:00:03.7]} 41. Rxa2 {[%clk 0:00:04.1]}
41... Qxa2+ {[%clk 0:00:03.4]} 42. Kh3 {[%clk 0:00:04.3]} 42... Qe6+ {[%clk
0:00:03.5]} 43. g4 {[%clk 0:00:03.7]} 43... h5 {[%clk 0:00:02]} 44. Kg3 {[%clk
0:00:03.6]} 1-0

[Event "*** SCC Grand Prix: Titled Tuesday Blitz"]
[Site "Chess.com"]
[Date "2020.07.14"]
[Round "7"]
[White "Bazarov04"]
[Black "chito89"]
[Result "0-1"]
[WhiteElo "2588"]
[BlackElo "2799"]
[TimeControl "180+1"]
[EndTime "11:20:21 PDT"]
[Termination "chito89 won on time"]

1. e4 {[%clk 0:03:00.3]} 1... c5 {[%clk 0:02:59.5]} 2. Be2 {[%clk 0:03:00.1]}
2... d5 {[%clk 0:02:57.6]} 3. d3 {[%clk 0:03:00]} 3... Nc6 {[%clk 0:02:57.6]} 4.
f4 {[%clk 0:02:59.8]} 4... g6 {[%clk 0:02:55.8]} 5. Nf3 {[%clk 0:02:59.5]} 5...
Bg7 {[%clk 0:02:56.3]} 6. O-O {[%clk 0:02:59.6]} 6... e6 {[%clk 0:02:56.2]} 7.
c3 {[%clk 0:02:44.8]} 7... Nge7 {[%clk 0:02:53.6]} 8. Na3 {[%clk 0:02:44.4]}
8... O-O {[%clk 0:02:48]} 9. Nc2 {[%clk 0:02:44.3]} 9... b6 {[%clk 0:02:40.3]}
10. Kh1 {[%clk 0:02:44]} 10... Ba6 {[%clk 0:02:33.7]} 11. e5 {[%clk 0:02:43.9]}
11... d4 {[%clk 0:02:32.7]} 12. c4 {[%clk 0:02:37.1]} 12... Bb7 {[%clk
0:02:17.4]} 13. Nd2 {[%clk 0:02:36.6]} 13... f6 {[%clk 0:01:28.5]} 14. exf6
{[%clk 0:02:35.2]} 14... Bxf6 {[%clk 0:01:29.4]} 15. Ne4 {[%clk 0:02:30.5]}
15... Nf5 {[%clk 0:01:27.1]} 16. Bf3 {[%clk 0:02:24.1]} 16... Bg7 {[%clk
0:00:52.5]} 17. Ng5 {[%clk 0:02:01.3]} 17... Re8 {[%clk 0:00:32.6]} 18. b4
{[%clk 0:01:56.9]} 18... Qc7 {[%clk 0:00:21.4]} 19. b5 {[%clk 0:01:21.3]} 19...
Nd8 {[%clk 0:00:20.9]} 20. Be4 {[%clk 0:01:11]} 20... Nf7 {[%clk 0:00:16.4]} 21.
Bxb7 {[%clk 0:01:00.4]} 21... Qxb7 {[%clk 0:00:15.5]} 22. Ne4 {[%clk 0:01:00.8]}
22... e5 {[%clk 0:00:11]} 23. Qf3 {[%clk 0:01:00.4]} 23... Qd7 {[%clk
0:00:09.2]} 24. Qf2 {[%clk 0:00:59.2]} 24... Ne3 {[%clk 0:00:06.2]} 25. Rg1
{[%clk 0:00:04.6]} 25... exf4 {[%clk 0:00:06.1]} 26. Ne1 {[%clk 0:00:03.8]}
26... g5 {[%clk 0:00:05.5]} 27. Nf3 {[%clk 0:00:03.8]} 27... h6 {[%clk 0:00:06]}
28. Bb2 {[%clk 0:00:02.9]} 28... Rxe4 {[%clk 0:00:05.7]} 29. dxe4 {[%clk
0:00:03]} 29... Nxc4 {[%clk 0:00:06.6]} 30. Bc1 {[%clk 0:00:02.3]} 30... Qxb5
{[%clk 0:00:06.6]} 31. Nd2 {[%clk 0:00:02.5]} 31... Re8 {[%clk 0:00:06.5]} 32.
Nxc4 {[%clk 0:00:02.4]} 32... Qxc4 {[%clk 0:00:07.4]} 33. a4 {[%clk 0:00:02.9]}
33... d3 {[%clk 0:00:07.3]} 34. Ra2 {[%clk 0:00:03.4]} 34... Qxe4 {[%clk
0:00:07.4]} 35. Rf1 {[%clk 0:00:02.9]} 35... c4 {[%clk 0:00:07.4]} 36. Ba3
{[%clk 0:00:02.4]} 36... Bd4 {[%clk 0:00:07.7]} 37. Qd2 {[%clk 0:00:02.4]} 37...
c3 {[%clk 0:00:08.1]} 38. Qd1 {[%clk 0:00:02.7]} 38... d2 {[%clk 0:00:08.5]} 39.
Rc2 {[%clk 0:00:02.7]} 39... Qd3 {[%clk 0:00:08.6]} 40. Bb4 {[%clk 0:00:02.9]}
40... Qxf1+ {[%clk 0:00:08.5]} 41. Qxf1 {[%clk 0:00:03]} 41... Re1 {[%clk
0:00:09.4]} 42. Rc1 {[%clk 0:00:03]} 42... dxc1=Q {[%clk 0:00:08.8]} 0-1

[Event "*** SCC Grand Prix: Titled Tuesday Blitz"]
[Site "Chess.com"]
[Date "2020.07.14"]
[Round "7"]
[White "RodinMihail"]
[Black "Airquake"]
[Result "1-0"]
[WhiteElo "2469"]
[BlackElo "2594"]
[TimeControl "180+1"]
[EndTime "11:20:22 PDT"]
[Termination "RodinMihail won on time"]

1. e4 {[%clk 0:03:00.9]} 1... c5 {[%clk 0:02:57.6]} 2. Nf3 {[%clk 0:03:00.9]}
2... d6 {[%clk 0:02:58.1]} 3. d4 {[%clk 0:03:01.4]} 3... cxd4 {[%clk 0:02:59]}
4. Nxd4 {[%clk 0:03:02.1]} 4... Nf6 {[%clk 0:02:59.5]} 5. Nc3 {[%clk 0:03:02.7]}
5... a6 {[%clk 0:02:59.9]} 6. Qf3 {[%clk 0:03:02.9]} 6... g6 {[%clk 0:02:58.8]}
7. h3 {[%clk 0:03:02.6]} 7... Bg7 {[%clk 0:02:59.2]} 8. Be3 {[%clk 0:03:03.2]}
8... O-O {[%clk 0:02:59.6]} 9. O-O-O {[%clk 0:03:03.8]} 9... Qc7 {[%clk
0:02:59.6]} 10. g4 {[%clk 0:03:04.1]} 10... Nc6 {[%clk 0:02:59.4]} 11. g5 {[%clk
0:03:02.8]} 11... Ne5 {[%clk 0:02:58.5]} 12. gxf6 {[%clk 0:02:54.1]} 12... Nxf3
{[%clk 0:02:58.1]} 13. fxg7 {[%clk 0:02:54.3]} 13... Kxg7 {[%clk 0:02:55.4]} 14.
Nxf3 {[%clk 0:02:54.3]} 14... Be6 {[%clk 0:02:55.9]} 15. Nd4 {[%clk 0:02:44.1]}
15... Bc4 {[%clk 0:02:54.3]} 16. h4 {[%clk 0:02:39.4]} 16... h5 {[%clk
0:02:50.7]} 17. Kb1 {[%clk 0:02:33.4]} 17... Rac8 {[%clk 0:02:48.4]} 18. Rg1
{[%clk 0:02:32.5]} 18... b5 {[%clk 0:02:46.3]} 19. Bh3 {[%clk 0:02:31.7]} 19...
e6 {[%clk 0:02:31.5]} 20. b3 {[%clk 0:02:20.9]} 20... Bxb3 {[%clk 0:02:29.2]}
21. Nxb3 {[%clk 0:02:20.6]} 21... b4 {[%clk 0:02:28]} 22. Na4 {[%clk 0:02:06.2]}
22... Qxc2+ {[%clk 0:02:13.9]} 23. Ka1 {[%clk 0:02:05.9]} 23... Qxe4 {[%clk
0:02:12.5]} 24. Bf1 {[%clk 0:01:26.2]} 24... Kg8 {[%clk 0:01:45.3]} 25. Bd3
{[%clk 0:01:25.6]} 25... Qxh4 {[%clk 0:01:42]} 26. Nb6 {[%clk 0:01:18.1]} 26...
Rc3 {[%clk 0:01:35.9]} 27. Nd7 {[%clk 0:01:03.3]} 27... Rfc8 {[%clk 0:01:28.8]}
28. Bg5 {[%clk 0:00:56.4]} 28... Qh3 {[%clk 0:01:25.8]} 29. Nf6+ {[%clk
0:00:52.9]} 29... Kg7 {[%clk 0:01:21.2]} 30. Rg3 {[%clk 0:00:52.4]} 30... Rxd3
{[%clk 0:01:02.4]} 31. Rdxd3 {[%clk 0:00:45.1]} 31... Qf1+ {[%clk 0:01:00.2]}
32. Kb2 {[%clk 0:00:44]} 32... Qxf2+ {[%clk 0:00:59.1]} 33. Nd2 {[%clk
0:00:42.6]} 33... Qf5 {[%clk 0:00:37.8]} 34. Nfe4 {[%clk 0:00:39.7]} 34... d5
{[%clk 0:00:33]} 35. Bf6+ {[%clk 0:00:16]} 35... Qxf6+ {[%clk 0:00:32.8]} 36.
Nxf6 {[%clk 0:00:15.6]} 36... Kxf6 {[%clk 0:00:33.7]} 37. Rdf3+ {[%clk
0:00:15.2]} 37... Kg7 {[%clk 0:00:30.7]} 38. Rb3 {[%clk 0:00:14.4]} 38... a5
{[%clk 0:00:29.5]} 39. a3 {[%clk 0:00:15]} 39... bxa3+ {[%clk 0:00:29.6]} 40.
Rxa3 {[%clk 0:00:15.2]} 40... f5 {[%clk 0:00:21.4]} 41. Rxa5 {[%clk 0:00:14.4]}
41... f4 {[%clk 0:00:21.8]} 42. Rg1 {[%clk 0:00:13.5]} 42... Kf6 {[%clk
0:00:19.8]} 43. Nf3 {[%clk 0:00:13.9]} 43... Rc4 {[%clk 0:00:12.7]} 44. Ng5
{[%clk 0:00:13.7]} 44... Kf5 {[%clk 0:00:10.5]} 45. Ra6 {[%clk 0:00:13.3]} 45...
e5 {[%clk 0:00:10.7]} 46. Nf7 {[%clk 0:00:13.5]} 46... Ke4 {[%clk 0:00:01.3]}
47. Nd6+ {[%clk 0:00:13.6]} 1-0

[Event "*** SCC Grand Prix: Titled Tuesday Blitz"]
[Site "Chess.com"]
[Date "2020.07.14"]
[Round "7"]
[White "f3andwins"]
[Black "Anton_Demchenko"]
[Result "0-1"]
[WhiteElo "2439"]
[BlackElo "2804"]
[TimeControl "180+1"]
[EndTime "11:20:25 PDT"]
[Termination "Anton_Demchenko won by resignation"]

1. d4 {[%clk 0:03:00.9]} 1... Nf6 {[%clk 0:02:59.5]} 2. c4 {[%clk 0:03:01.2]}
2... g6 {[%clk 0:02:58.1]} 3. Nc3 {[%clk 0:03:00.5]} 3... Bg7 {[%clk 0:02:58.8]}
4. e4 {[%clk 0:03:00.6]} 4... O-O {[%clk 0:02:59.7]} 5. Nge2 {[%clk 0:02:58.1]}
5... Nc6 {[%clk 0:02:58.3]} 6. f3 {[%clk 0:02:57.5]} 6... d6 {[%clk 0:02:55.2]}
7. Be3 {[%clk 0:02:56.2]} 7... a6 {[%clk 0:02:55.7]} 8. Qd2 {[%clk 0:02:50.2]}
8... Bd7 {[%clk 0:02:56]} 9. Rc1 {[%clk 0:02:47.6]} 9... b5 {[%clk 0:02:56]} 10.
c5 {[%clk 0:02:44]} 10... dxc5 {[%clk 0:02:54.5]} 11. dxc5 {[%clk 0:02:40.7]}
11... Qc8 {[%clk 0:02:49.8]} 12. Nd4 {[%clk 0:02:36]} 12... Rd8 {[%clk
0:02:49.4]} 13. Qf2 {[%clk 0:02:30.5]} 13... b4 {[%clk 0:02:39]} 14. Nd5 {[%clk
0:02:19.2]} 14... Nxd5 {[%clk 0:02:19.4]} 15. exd5 {[%clk 0:02:20.1]} 15... Nxd4
{[%clk 0:02:15.7]} 16. Bxd4 {[%clk 0:02:21]} 16... Bxd4 {[%clk 0:01:57]} 17.
Qxd4 {[%clk 0:02:21.9]} 17... Bc6 {[%clk 0:01:57.6]} 18. Bc4 {[%clk 0:02:15.7]}
18... e6 {[%clk 0:01:53]} 19. d6 {[%clk 0:02:09.2]} 19... cxd6 {[%clk
0:01:52.5]} 20. cxd6 {[%clk 0:02:10.1]} 20... Qd7 {[%clk 0:01:52.6]} 21. Rd1
{[%clk 0:02:10.1]} 21... a5 {[%clk 0:01:47.7]} 22. Kf2 {[%clk 0:01:54.9]} 22...
Qa7 {[%clk 0:01:47.6]} 23. h4 {[%clk 0:01:48.9]} 23... h6 {[%clk 0:01:29.8]} 24.
h5 {[%clk 0:01:33.9]} 24... g5 {[%clk 0:01:30]} 25. Kg3 {[%clk 0:01:20]} 25...
Qxd4 {[%clk 0:01:29.3]} 26. Rxd4 {[%clk 0:01:19.4]} 26... Kg7 {[%clk 0:01:23.1]}
27. Rhd1 {[%clk 0:01:04.5]} 27... Ra7 {[%clk 0:01:11.6]} 28. f4 {[%clk
0:00:52.5]} 28... gxf4+ {[%clk 0:01:10.1]} 29. Kxf4 {[%clk 0:00:53.4]} 29... Kf6
{[%clk 0:01:09.7]} 30. Ke3 {[%clk 0:00:42.3]} 30... Rad7 {[%clk 0:01:07.1]} 31.
g4 {[%clk 0:00:32.7]} 31... Ke5 {[%clk 0:01:03.1]} 32. Rf1 {[%clk 0:00:29.3]}
32... Rg8 {[%clk 0:00:50.1]} 33. Be2 {[%clk 0:00:17.6]} 33... Bd5 {[%clk
0:00:30]} 34. Bb5 {[%clk 0:00:07.7]} 34... Rb7 {[%clk 0:00:21.7]} 35. Bc4 {[%clk
0:00:04.5]} 35... Bxc4 {[%clk 0:00:16.8]} 36. Rxc4 {[%clk 0:00:05.1]} 36... Kxd6
{[%clk 0:00:17.3]} 37. Rd1+ {[%clk 0:00:04.5]} 37... Ke7 {[%clk 0:00:17.4]} 38.
Kf4 {[%clk 0:00:04]} 38... Rgb8 {[%clk 0:00:06.7]} 39. Rcd4 {[%clk 0:00:03.5]}
39... a4 {[%clk 0:00:06.7]} 40. Kg3 {[%clk 0:00:02.8]} 40... Ra7 {[%clk
0:00:06.4]} 41. Rc4 {[%clk 0:00:02.6]} 41... Rb5 {[%clk 0:00:06.1]} 42. Kf4
{[%clk 0:00:02.2]} 42... b3 {[%clk 0:00:06.5]} 43. axb3 {[%clk 0:00:02.3]} 43...
Rxb3 {[%clk 0:00:06.4]} 44. Rd2 {[%clk 0:00:02.9]} 44... a3 {[%clk 0:00:05.1]}
45. bxa3 {[%clk 0:00:03.8]} 45... Raxa3 {[%clk 0:00:05.8]} 46. Rc7+ {[%clk
0:00:04]} 46... Kf6 {[%clk 0:00:06]} 47. Rdd7 {[%clk 0:00:04.6]} 47... Rb4+
{[%clk 0:00:06.4]} 0-1